fUSD/lending_fUSD_20241208
["ID","MTS","AMOUNT","RATE_DAILY","PERIOD"]
[344642144,1733662455132,200.0,0.00014959,2]
[344642146,1733662455455,200.0,0.00014977,2]
[344642147,1733662455763,200.0,0.00014967,2]
[344642149,1733662466348,200.0,0.00014998,2]
[344642150,1733662466711,200.0,0.00014957,2]
[344642151,1733662467004,200.0,0.00014973,2]
[344642152,1733662467292,200.0,0.00014962,2]
[344642153,1733662467585,200.0,0.00014989,2]
[344642154,1733662467892,200.0,0.00014978,2]
[344642156,1733662505594,6911.51243421,0.00014958,2]
[344642157,1733662505913,6911.51243421,0.00014956,2]
[344642158,1733662506220,6911.51243421,0.00014956,2]
[344642159,1733662506581,6911.51243421,0.00014971,2]
[344642160,1733662506882,6911.51243421,0.00014974,2]
[344642161,1733662507284,6911.51243421,0.00014992,2]
[344642162,1733662513688,200.0,0.00014974,2]
[344642163,1733662513972,200.0,0.00014976,2]
[344642164,1733662514271,200.0,0.00014972,2]
[344642165,1733662514733,200.0,0.00014993,2]
[344642166,1733662515027,200.0,0.0001496,2]
[344642167,1733662515339,200.0,0.00014978,2]
[344642168,1733662526469,200.0,0.00014972,2]
[344642169,1733662526761,200.0,0.0001499,2]
[344642170,1733662527081,200.0,0.00014977,2]
[344642171,1733662527374,200.0,0.00014979,2]
[344642172,1733662527675,200.0,0.00014971,2]
[344642173,1733662528014,200.0,0.00014979,2]
[344642174,1733662564310,5183.63432566,0.00014957,2]
[344642175,1733662564831,5183.63432566,0.00014999,2]
[344642176,1733662565123,5183.63432566,0.00014976,2]
[344642177,1733662565423,5183.63432566,0.00014986,2]
[344642178,1733662565737,5183.63432566,0.0001499,2]
[344642179,1733662566018,5183.63432566,0.00014972,2]
[344642180,1733662572441,200.0,0.00014992,2]
[344642181,1733662572736,200.0,0.00014967,2]
[344642182,1733662573035,200.0,0.00014989,2]
[344642183,1733662573354,200.0,0.0001496,2]
[344642184,1733662584574,200.0,0.00014979,2]
[344642185,1733662584909,200.0,0.00014976,2]
[344642186,1733662585377,200.0,0.00014999,2]
[344642187,1733662585540,200.0,0.00014999,2]
[344642188,1733662585901,200.0,0.00014992,2]
[344642189,1733662586274,200.0,0.00014989,2]
[344642190,1733662624863,3887.72574425,0.00014972,2]
[344642191,1733662625185,3887.72574425,0.00014971,2]
[344642192,1733662625547,3887.72574425,0.00014978,2]
[344642193,1733662625872,3887.72574425,0.00014959,2]
[344642194,1733662626176,3887.72574425,0.00014962,2]
[344642195,1733662626475,3887.72574425,0.00014992,2]
[344642196,1733662640538,200.0,0.00014996,2]
[344642197,1733662640824,200.0,0.00014999,2]
[344642198,1733662641139,200.0,0.00014976,2]
[344642199,1733662641428,200.0,0.00014974,2]
[344642200,1733662685408,2915.79430818,0.00014964,2]
[344642201,1733662685767,2915.79430818,0.00014992,2]
[344642202,1733662686064,2915.79430818,0.00014956,2]
[344642203,1733662686444,2915.79430818,0.0001496,2]
[344642204,1733662686767,2915.79430818,0.00014995,2]
[344642205,1733662687070,2915.79430818,0.00014964,2]
[344642206,1733662744384,2186.84573114,0.00014994,2]
[344642207,1733662744711,2186.84573114,0.00014993,2]
[344642208,1733662745016,2186.84573114,0.00014998,2]
[344642209,1733662745355,2186.84573114,0.00014958,2]
[344642210,1733662745838,2186.84573114,0.0001497,2]
[344642211,1733662746153,2186.84573114,0.00014998,2]
[344642212,1733662804383,1640.13429835,0.00014957,2]
[344642213,1733662804783,1640.13429835,0.00014992,2]
[344642214,1733662806362,1640.13429835,0.00014968,2]
[344642215,1733662808131,1640.13429835,0.0001499,2]
[344642216,1733662808487,1640.13429835,0.00014979,2]
[344642217,1733662808795,1640.13429835,0.00014983,2]
[344642223,1733662865719,1230.10072377,0.00014956,2]
[344642224,1733662866037,1230.10072377,0.00014977,2]
[344642225,1733662866354,1230.10072377,0.00014992,2]
[344642226,1733662866677,1230.10072377,0.00014982,2]
[344642227,1733662866962,1230.10072377,0.00014988,2]
[344642228,1733662867260,1230.10072377,0.00014956,2]
[344642229,1733662924717,922.57554282,0.00014979,2]
[344642230,1733662925147,922.57554282,0.00015,2]
[344642231,1733662925519,922.57554282,0.00014979,2]
[344642232,1733662925809,922.57554282,0.00014982,2]
[344642233,1733662926182,922.57554282,0.00014968,2]
[344642234,1733662926471,922.57554282,0.00014998,2]
[344642235,1733662985619,691.93165712,0.00014974,2]
[344642236,1733662985893,691.93165712,0.00014982,2]
[344642237,1733662986229,691.93165712,0.00014999,2]
[344642238,1733662986553,691.93165712,0.00014968,2]
[344642239,1733662986843,691.93165712,0.00014976,2]
[344642240,1733662987136,691.93165712,0.00014986,2]
[344642241,1733663046086,518.94874284,0.00014994,2]
[344642242,1733663046406,518.94874284,0.00014977,2]
[344642243,1733663046726,518.94874284,0.00014991,2]
[344642244,1733663047122,518.94874284,0.00014968,2]
[344642245,1733663047457,518.94874284,0.00014956,2]
[344642246,1733663047759,518.94874284,0.00014993,2]
[344642247,1733663104626,389.21155713,0.00015,2]
[344642248,1733663104948,389.21155713,0.00014995,2]
[344642249,1733663105242,389.21155713,0.00014995,2]
[344642250,1733663105531,389.21155713,0.00014979,2]
[344642251,1733663105856,389.21155713,0.00014978,2]
[344642252,1733663106206,389.21155713,0.00014973,2]
[344642260,1733663165942,291.90866785,0.00014998,2]
[344642261,1733663166039,291.90866785,0.00014984,2]
[344642262,1733663166335,291.90866785,0.00014961,2]
[344642263,1733663166668,291.90866785,0.00014956,2]
[344642264,1733663166981,291.90866785,0.00014979,2]
[344642265,1733663167328,291.90866785,0.00014985,2]
[344642266,1733663225838,218.93150088,0.00014988,2]
[344642267,1733663226121,218.93150088,0.00014978,2]
[344642268,1733663226453,218.93150088,0.00014968,2]
[344642269,1733663226768,218.93150088,0.00014982,2]
[344642270,1733663227082,218.93150088,0.00014981,2]
[344642271,1733663227368,218.93150088,0.00014961,2]
[344642272,1733663283855,200.0,0.00014962,2]
[344642273,1733663284192,200.0,0.00014959,2]
[344642274,1733663284504,200.0,0.00014998,2]
[344642275,1733663284830,200.0,0.00014988,2]
[344642276,1733663285156,200.0,0.00014985,2]
[344642277,1733663285517,200.0,0.00014968,2]
[344642278,1733663351593,200.0,0.00014991,2]
[344642279,1733663351921,200.0,0.0001499,2]
[344642280,1733663352201,200.0,0.00014969,2]
[344642281,1733663352512,200.0,0.00014956,2]
[344642282,1733663352926,200.0,0.00014994,2]
[344642283,1733663353241,200.0,0.00014977,2]
[344642284,1733663404505,200.0,0.00014983,2]
[344642285,1733663404830,200.0,0.00014987,2]
[344642286,1733663405187,200.0,0.00014971,2]
[344642287,1733663405441,200.0,0.00014997,2]
[344642288,1733663405753,200.0,0.00014974,2]
[344642289,1733663406090,200.0,0.00014992,2]
[344642290,1733663431741,-167.99,0.00017133,2]
[344642291,1733663431750,-375.48,0.00019696,2]
[344642292,1733663431759,-3000.0,0.00021,2]
[344642293,1733663431770,-167.3997204,0.00021023,2]
[344642294,1733663431779,-151.21663654,0.00021023,2]
[344642295,1733663431789,-150.0,0.00021023,2]
[344642296,1733663431798,-1350.89987705,0.00021023,2]
[344642297,1733663431807,-250.0,0.00021252,2]
[344642298,1733663431816,-150.0,0.00021263,2]
[344642299,1733663431826,-243.44,0.00021288,2]
[344642300,1733663431835,-470.09,0.00021416,2]
[344642301,1733663431846,-250.0,0.00021416,2]
[344642302,1733663431858,-270.08,0.00021465,2]
[344642303,1733663431867,-273.91,0.00021649,2]
[344642304,1733663431876,-363.78832925,0.00021649,2]
[344642305,1733663431888,-636.21167075,0.00021649,2]
[344642306,1733663431897,-231.9,0.00021663,30]
[344642307,1733663431906,-250.0,0.00021701,2]
[344642308,1733663431918,-36860.17111201,0.00021778,2]
[344642309,1733663431931,-51847.82888799,0.00021778,2]
[344642310,1733663431940,-852.18,0.00021826,2]
[344642311,1733663431950,-435.65,0.00021841,2]
[344642312,1733663431959,-435.65,0.00021841,2]
[344642313,1733663431968,-150.0,0.00021846,2]
[344642314,1733663431978,-327.263,0.0002185,2]
[344642315,1733663431987,-157.731123,0.00021888,2]
[344642316,1733663431997,-200.0,0.000219,2]
[344642317,1733663432006,-201.24,0.00021918,2]
[344642318,1733663432016,-375.48,0.0002196,2]
[344642319,1733663432025,-1089.78176655,0.00021996,2]
[344642320,1733663432035,-405.0,0.00021997,2]
[344642321,1733663432044,-768.15,0.00022055,2]
[344642322,1733663432053,-150.0,0.00022163,2]
[344642323,1733663432062,-2004.0,0.00022163,2]
[344642324,1733663432070,-631.0,0.00022163,2]
[344642325,1733663432079,-1894.0,0.00022163,2]
[344642326,1733663432088,-563.0,0.00022163,2]
[344642327,1733663432097,-1253.0,0.00022163,2]
[344642328,1733663432107,-909.182,0.00022163,2]
[344642329,1733663432116,-3762.0,0.00022163,2]
[344642330,1733663432125,-535.0,0.00022163,2]
[344642331,1733663432135,-3530.0,0.00022163,2]
[344642332,1733663432144,-973.0,0.00022163,2]
[344642333,1733663432153,-1167.0,0.00022164,2]
[344642334,1733663432164,-5965.0,0.00022164,2]
[344642335,1733663432173,-150.0,0.00022164,2]
[344642337,1733663432183,-4071.97948225,0.00022164,2]
[344642339,1733663432195,-9646.02051775,0.00022164,2]
[344642341,1733663432204,-270.08,0.0002226,2]
[344642343,1733663432214,-1342.256,0.00022333,2]
[344642344,1733663432224,-422.3067094,0.00022633,2]
[344642345,1733663432233,-1000.0,0.00022641,2]
[344642346,1733663432242,-23401.46684588,0.00022655,2]
[344642347,1733663432251,-3000.0,0.0002267,2]
[344642348,1733663432260,-15043.8732,0.000227,2]
[344642349,1733663432269,-215.85371758,0.00022799,2]
[344642350,1733663432278,-1000.0,0.000228,2]
[344642351,1733663432287,-500.0,0.00022873,2]
[344642353,1733663432298,-759.73955179,0.0002289,2]
[344642355,1733663432307,-759.73955179,0.0002289,2]
[344642357,1733663432316,-986.71,0.00022898,2]
[344642359,1733663432325,-500.0,0.00022899,2]
[344642361,1733663432334,-1250.0,0.00022899,2]
[344642363,1733663432343,-1250.0,0.00022899,2]
[344642366,1733663432352,-1250.0,0.00022899,2]
[344642368,1733663432361,-1250.0,0.00022899,2]
[344642370,1733663432370,-1250.0,0.00022899,2]
[344642372,1733663432379,-1250.0,0.00022899,2]
[344642374,1733663432388,-1250.0,0.00022899,2]
[344642375,1733663432397,-1250.0,0.00022899,2]
[344642376,1733663432406,-500.0,0.00022899,2]
[344642377,1733663432415,-312.21,0.00022899,2]
[344642378,1733663432425,-146721.26171393,0.000229,2]
[344642379,1733663432434,-215.56401963,0.000229,2]
[344642380,1733663432443,-343760.73959995,0.000229,2]
[344642381,1733663432455,-5005.0,0.000229,2]
[344642382,1733663432465,-7988.77150992,0.000229,2]
[344642383,1733663432476,-2092.358572,0.000229,2]
[344642384,1733663432487,-2312.0,0.000229,2]
[344642385,1733663432498,-319.0426709,0.000229,2]
[344642387,1733663437740,-921.69,0.00022442,2]
[344642388,1733663437798,-20.40794301,0.00022442,2]
[344642389,1733663437807,-4103.69570487,0.000229,2]
[344642467,1733663439663,-5465.66739687,0.000229,2]
[344642468,1733663439725,-417.76166719,0.000229,2]
[344642469,1733663439738,-3714.36616916,0.000229,2]
[344642470,1733663439783,-997.060816,0.000229,2]
[344642471,1733663442182,-1392.78352541,0.000229,2]
[344642472,1733663442238,-2022.04857538,0.000229,2]
[344642473,1733663442249,-834.96000007,0.000229,2]
[344642474,1733663442295,-5720.34670081,0.000229,2]
[344642510,1733663442790,-6726.4776638,0.000229,2]
[344642512,1733663442802,-3544.61338718,0.000229,2]
[344642515,1733663442813,-4427.30003925,0.000229,2]
[344642522,1733663442857,-4230.39879351,0.000229,2]
[344642537,1733663442970,-2535.68725369,0.000229,2]
[344642539,1733663442982,-19337.13318035,0.000229,2]
[344642557,1733663443135,-9044.99999993,0.000229,2]
[344642559,1733663443146,-6694.07858982,0.000229,2]
[344642565,1733663443192,-2558.0,0.000229,2]
[344642572,1733663443250,-90350.61065257,0.000229,2]
[344642574,1733663443261,-134288.0,0.000229,2]
[344642576,1733663443272,-730.07140233,0.000229,2]
[344642579,1733663443283,-652.62529538,0.000229,2]
[344642688,1733663445727,-4317.4491721,0.000229,2]
[344642689,1733663445739,-1193.25,0.000229,2]
[344642690,1733663445751,-538.70369134,0.000229,2]
[344642691,1733663445965,-650.1938355,0.000229,2]
[344642692,1733663445978,-2346.3853731,0.000229,2]
[344642693,1733663445992,-4833.79971318,0.000229,2]
[344642694,1733663446003,-491.77923246,0.000229,2]
[344642695,1733663446015,-639.2589875,0.000229,2]
[344642696,1733663446027,-983.25995625,0.000229,2]
[344642697,1733663446039,-922.46,0.000229,2]
[344642698,1733663446051,-399.1,0.000229,2]
[344642699,1733663446064,-2564.5,0.000229,2]
[344642700,1733663446076,-2359.44892304,0.000229,2]
[344642701,1733663446087,-780.0,0.000229,2]
[344642702,1733663446099,-1767.04902266,0.000229,2]
[344642703,1733663446113,-2720.269233,0.000229,2]
[344642704,1733663446130,-3856.29943831,0.000229,2]
[344642705,1733663463982,1199.18881701,0.00014989,2]
[344642706,1733663464298,1199.18881701,0.00014995,2]
[344642707,1733663464664,1199.18881701,0.0001499,2]
[344642708,1733663464947,1199.18881701,0.00014977,2]
[344642709,1733663465270,1199.18881701,0.00014979,2]
[344642710,1733663465560,1199.18881701,0.00014987,2]
[344642711,1733663486668,200.0,0.00014989,2]
[344642712,1733663486977,200.0,0.00014986,2]
[344642713,1733663487481,200.0,0.0001498,2]
[344642714,1733663487899,200.0,0.0001499,2]
[344642717,1733663525499,899.39161275,0.00014957,2]
[344642718,1733663525826,899.39161275,0.00014991,2]
[344642719,1733663526128,899.39161275,0.00014967,2]
[344642720,1733663526489,899.39161275,0.0001497,2]
[344642721,1733663526848,899.39161275,0.00014965,2]
[344642722,1733663527152,899.39161275,0.00014959,2]
[344642723,1733663584507,674.54370957,0.00014982,2]
[344642724,1733663584831,674.54370957,0.00014997,2]
[344642725,1733663585167,674.54370957,0.00014966,2]
[344642726,1733663585538,674.54370957,0.00014965,2]
[344642727,1733663585879,674.54370957,0.0001498,2]
[344642728,1733663586218,674.54370957,0.00014964,2]
[344642731,1733663643697,505.90778217,0.00014997,2]
[344642732,1733663644743,505.90778217,0.00014962,2]
[344642733,1733663645064,505.90778217,0.00014991,2]
[344642734,1733663645420,505.90778217,0.00015,2]
[344642735,1733663645772,505.90778217,0.00014967,2]
[344642736,1733663646096,505.90778217,0.00014975,2]
[344642737,1733663706127,379.43083663,0.00014968,2]
[344642738,1733663706425,379.43083663,0.00014957,2]
[344642739,1733663706749,379.43083663,0.00014966,2]
[344642740,1733663707070,379.43083663,0.00014968,2]
[344642741,1733663707463,379.43083663,0.00014962,2]
[344642742,1733663707817,379.43083663,0.00014963,2]
[344642743,1733663766211,284.57312747,0.00014991,2]
[344642744,1733663766696,284.57312747,0.0001498,2]
[344642745,1733663766986,284.57312747,0.00014981,2]
[344642746,1733663767312,284.57312747,0.00014982,2]
[344642747,1733663767668,284.57312747,0.00014999,2]
[344642748,1733663768048,284.57312747,0.00015,2]
[344642749,1733663823849,213.42984561,0.00014963,2]
[344642750,1733663824139,213.42984561,0.00014998,2]
[344642751,1733663824460,213.42984561,0.00014993,2]
[344642752,1733663824831,213.42984561,0.00014976,2]
[344642753,1733663825141,213.42984561,0.00014984,2]
[344642754,1733663825446,213.42984561,0.00014978,2]
[344642756,1733663884926,200.0,0.00014999,2]
[344642757,1733663885243,200.0,0.0001497,2]
[344642758,1733663885705,200.0,0.00014964,2]
[344642759,1733663886104,200.0,0.00014967,2]
[344642760,1733663886399,200.0,0.00014965,2]
[344642761,1733663886722,200.0,0.00014971,2]
[344642762,1733663945939,200.0,0.00014992,2]
[344642763,1733663946117,200.0,0.0001497,2]
[344642764,1733663946434,200.0,0.00014971,2]
[344642765,1733663946733,200.0,0.0001498,2]
[344642766,1733663947028,200.0,0.00014965,2]
[344642767,1733663947342,200.0,0.00014985,2]
[344642768,1733664004425,200.0,0.00014967,2]
[344642769,1733664004744,200.0,0.00014955,2]
[344642770,1733664005082,200.0,0.00015,2]
[344642771,1733664005428,200.0,0.00014971,2]
[344642772,1733664005835,200.0,0.00014969,2]
[344642773,1733664006257,200.0,0.00014972,2]
[344642774,1733664038268,906.6414483,0.0002,120]
[344642796,1733664522769,300.44607908,9e-05,3]
[344642798,1733664568778,1518.5556395,0.00015,10]
[344642804,1733664631874,-167.99,0.00016523,2]
[344642805,1733664631884,-337.93,0.00018849,2]
[344642806,1733664631894,-3298.86388881,0.000195,2]
[344642807,1733664631906,-1378.66431652,0.000195,2]
[344642808,1733664631939,-2525.0000005,0.000195,2]
[344642809,1733664631951,-464.4468002,0.000195,2]
[344642810,1733664632000,-267.49353479,0.000195,2]
[344642811,1733664632009,-1000.0,0.00020643,2]
[344642812,1733664632019,-300.0,0.0002066,2]
[344642813,1733664632029,-681.74,0.00020661,2]
[344642814,1733664632038,-163.16044117,0.00020672,2]
[344642815,1733664632049,-250.0,0.00020693,2]
[344642816,1733664632058,-250.0,0.00020709,2]
[344642817,1733664632068,-150.0,0.00020772,2]
[344642818,1733664632077,-1615.55,0.00020772,2]
[344642819,1733664632088,-2026.31648676,0.000209,2]
[344642820,1733664632178,-377.81641324,0.000209,2]
[344642821,1733664632188,-220.3,0.00020918,30]
[344642822,1733664632200,-3000.0,0.00021,2]
[344642823,1733664632209,-840.46251474,0.00021,22]
[344642824,1733664632221,-1396.2107842,0.00021,22]
[344642825,1733664632232,-1363.32670106,0.00021,22]
[344642827,1733664632242,-337.93,0.00021113,2]
[344642829,1733664632251,-150.0,0.00021172,2]
[344642831,1733664632262,-1464.24,0.00021236,2]
[344642833,1733664632273,-1464.24,0.00021241,2]
[344642835,1733664632282,-1464.24,0.00021247,2]
[344642836,1733664632291,-1464.24,0.00021252,2]
[344642838,1733664632301,-1464.24,0.00021258,2]
[344642840,1733664632310,-1464.24,0.00021263,2]
[344642842,1733664632320,-1464.24,0.00021269,2]
[344642843,1733664632329,-1464.24,0.00021275,2]
[344642844,1733664632340,-1464.24,0.0002128,2]
[344642845,1733664632350,-1464.24,0.00021286,2]
[344642846,1733664632359,-1464.24,0.00021291,2]
[344642847,1733664632369,-1464.24,0.00021297,2]
[344642848,1733664632378,-1464.24,0.00021303,2]
[344642849,1733664632387,-1464.24,0.00021308,2]
[344642850,1733664632397,-1464.24,0.00021314,2]
[344642851,1733664632406,-1211.546,0.00021316,2]
[344642852,1733664632415,-994.58,0.00021316,2]
[344642853,1733664632425,-1018.5,0.00021316,2]
[344642854,1733664632435,-985.46,0.00021316,2]
[344642855,1733664632445,-992.71,0.00021316,2]
[344642856,1733664632454,-1464.24,0.00021319,2]
[344642857,1733664632464,-1464.24,0.00021325,2]
[344642858,1733664632473,-1464.24,0.00021331,2]
[344642859,1733664632482,-1464.24,0.00021336,2]
[344642860,1733664632492,-1464.24,0.00021342,2]
[344642861,1733664632501,-162.04,0.0002137,2]
[344642862,1733664632510,-313.716,0.0002176,2]
[344642863,1733664632520,-200.0,0.000219,2]
[344642864,1733664632529,-3600.0,0.00022,23]
[344642865,1733664632538,-162.04,0.00022161,2]
[344642866,1733664632548,-208.22,0.00022403,2]
[344642867,1733664632557,-368.35,0.00022403,2]
[344642868,1733664632566,-151.4,0.00022403,2]
[344642869,1733664632575,-377.1,0.00022403,2]
[344642870,1733664632584,-369.0,0.00022482,2]
[344642871,1733664632594,-32319.0,0.000225,4]
[344642872,1733664632603,-1409.18885344,0.00022655,2]
[344642873,1733664632613,-870.54,0.00022701,2]
[344642874,1733664632623,-44566.4778061,0.000228,2]
[344642875,1733664632632,-5010.35897432,0.000228,3]
[344642876,1733664632642,-2550.7967,0.000228,2]
[344642877,1733664632651,-253.24651726,0.0002289,2]
[344642878,1733664632660,-253.24651726,0.0002289,2]
[344642879,1733664632669,-1053.67,0.00022899,2]
[344642880,1733664632679,-500.0,0.00022899,2]
[344642881,1733664632688,-647.39194579,0.00022899,2]
[344642882,1733664632698,-833.33,0.00022899,2]
[344642883,1733664632708,-833.33,0.00022899,2]
[344642884,1733664632718,-833.33,0.00022899,2]
[344642885,1733664632729,-833.33,0.00022899,2]
[344642886,1733664632739,-833.33,0.00022899,2]
[344642887,1733664632748,-500.0,0.00022899,2]
[344642888,1733664632757,-500.0,0.00022899,2]
[344642889,1733664632766,-367.07294972,0.00022899,2]
[344642890,1733664632776,-300.0,0.00022899,2]
[344642891,1733664632785,-1231.61743503,0.000229,2]
[344642892,1733664632799,-10885.5394428,0.000229,2]
[344642893,1733664632811,-65758.75049672,0.000229,2]
[344642894,1733664632821,-215.56401962,0.000229,2]
[344642895,1733664632830,-2966.53784647,0.000229,2]
[344642896,1733664632840,-993.0,0.000229,2]
[344642897,1733664632849,-89930.37139963,0.000229,2]
[344642898,1733664632860,-156942.00008779,0.000229,2]
[344642899,1733664632871,-163644.67102691,0.000229,2]
[344642900,1733664632882,-4840.47176226,0.000229,2]
[344642907,1733664637924,-40146.94284439,0.000229,2]
[344642908,1733664637989,-7883.41700328,0.000229,2]
[344642909,1733664638000,-2248.8,0.000229,2]
[344642910,1733664638069,-655.655,0.000229,2]
[344642911,1733664638081,-3781.041,0.000229,2]
[344642912,1733664638132,-2980.03609371,0.000229,2]
[344643078,1733664639839,-279.05538376,0.000229,2]
[344643079,1733664639906,-666.330025,0.000229,2]
[344643080,1733664639917,-543.9,0.000229,2]
[344643081,1733664639967,-402.55967856,0.000229,2]
[344643082,1733664639979,-1313.512236,0.000229,2]
[344643083,1733664639990,-300.42437459,0.000229,2]
[344643084,1733664640028,-298.2975,0.000229,2]
[344643085,1733664640090,-468.69000001,0.000229,2]
[344643086,1733664640152,-324.80699999,0.000229,2]
[344643125,1733664643039,-792.0230043,0.000229,2]
[344643126,1733664643050,-1002.4,0.000229,2]
[344643127,1733664643062,-5954.41105031,0.000229,2]
[344643128,1733664643073,-2003.08177937,0.000229,2]
[344643129,1733664643214,-93921.8789506,0.000229,2]
[344643130,1733664643378,-8173.25296928,0.000229,2]
[344643131,1733664643438,-2562.0,0.000229,2]
[344643132,1733664643497,-618.865,0.000229,2]
[344643133,1733664643508,-90350.61065257,0.000229,2]
[344643137,1733664645828,-526.20000025,0.000229,2]
[344643138,1733664645840,-536.53736174,0.000229,2]
[344643139,1733664645898,-1086.36216507,0.000229,2]
[344643140,1733664646016,-3568.13332904,0.000229,2]
[344643141,1733664646027,-545.69968983,0.000229,2]
[344643142,1733664646078,-1540.0,0.000229,2]
[344643143,1733664646089,-1698.61604412,0.000229,2]
[344643144,1733664646141,-673.11000003,0.000229,2]
[344643183,1733665832072,-304.13,0.00019655,2]
[344643184,1733665832083,-101.22,0.00019999,2]
[344643185,1733665832133,-198.78,0.00019999,2]
[344643186,1733665832142,-7034.89195372,0.0002,2]
[344643187,1733665832308,-1243.56698444,0.0002,2]
[344643188,1733665832320,-1228.47,0.0002,2]
[344643189,1733665832333,-5808.86106184,0.0002,2]
[344643190,1733665832343,-6306.34865653,0.00021357,2]
[344643191,1733665832354,-7000.23134347,0.00021357,2]
[344643192,1733665832365,-1500.0,0.0002138,2]
[344643193,1733665832376,-250.0,0.00021383,2]
[344643194,1733665832385,-162.04,0.00021383,2]
[344643195,1733665832396,-200.0,0.00021405,2]
[344643196,1733665832406,-848.36,0.00021444,2]
[344643197,1733665832416,-1845.66,0.00021478,2]
[344643198,1733665832426,-157.57,0.00021526,2]
[344643199,1733665832435,-250.0,0.00021546,2]
[344643200,1733665832444,-209.28,0.00021601,30]
[344643201,1733665832453,-1000.0,0.00021725,2]
[344643202,1733665832462,-150.0,0.00021725,2]
[344643203,1733665832472,-250.0,0.00021725,2]
[344643205,1733665832482,-394.53,0.00021759,2]
[344643206,1733665832491,-300.744,0.0002176,2]
[344643208,1733665832501,-300.0,0.00021777,2]
[344643210,1733665832510,-1017.01,0.00021859,2]
[344643212,1733665832519,-157.731123,0.00021888,2]
[344643214,1733665832529,-304.13,0.00021918,2]
[344643216,1733665832538,-167.7,0.00021926,2]
[344643219,1733665832554,-996.77,0.00021979,2]
[344643221,1733665832563,-93297.0,0.00021998,2]
[344643224,1733665832572,-286.0449297,0.00022,90]
[344643225,1733665832582,-292.45,0.00022055,2]
[344643229,1733665832591,-1018.74,0.00022159,2]
[344643232,1733665832601,-150.0,0.00022219,2]
[344643233,1733665832610,-163.19,0.00022377,2]
[344643236,1733665832619,-157.731123,0.00022435,2]
[344643237,1733665832629,-150.0,0.00022466,2]
[344643239,1733665832639,-166.66,0.00022539,2]
[344643241,1733665832650,-1094.2494,0.00022571,2]
[344643242,1733665832660,-65.39955903,0.00022576,2]
[344643245,1733665838080,-812.95044097,0.00022576,2]
[344643246,1733665838090,-602.22889103,0.00022581,2]
[344643247,1733665838198,-407.11110897,0.00022581,2]
[344643248,1733665838208,-969.237,0.0002267,2]
[344643249,1733665838217,-982.11,0.0002269,2]
[344643250,1733665838228,-1412.86859103,0.000228,2]
[344643251,1733665838259,-1277.08050897,0.000228,2]
[344643252,1733665838268,-217.887703,0.000228,2]
[344643253,1733665838277,-217.887703,0.00022811,2]
[344643254,1733665838287,-217.887703,0.00022822,2]
[344643255,1733665838298,-217.887703,0.00022833,2]
[344643256,1733665838310,-351.82083636,0.00022834,2]
[344643257,1733665838320,-540.202788,0.00022834,2]
[344643258,1733665838329,-351.82083636,0.00022837,2]
[344643259,1733665838339,-469.09444848,0.00022838,2]
[344643260,1733665838348,-960.360512,0.00022843,2]
[344643261,1733665838357,-1280.48068266,0.00022844,2]
[344643262,1733665838367,-469.09444848,0.00022844,2]
[344643263,1733665838376,-217.887703,0.00022844,2]
[344643264,1733665838385,-540.202788,0.00022846,2]